Cogmind - Beta 15 @@@ ROGUE MODE // 2025.07.26 @ 21:00:13 Player: Cracklepappy Result: Destroyed by JZ-E0G(R) with Subdweller Laser Performance ------------- Evolutions (0) 0 Regions Visited (3) 600 Robots Destroyed (41) 205 Value Destroyed (854) 854 Prototype IDs (3) 60 Alien Tech Used (0) 0 Bonus (0) 0 TOTAL SCORE: 1719 Bonus ------- None Cogmind --------- Core Integrity 0/250 Matter 215/300 Energy 118/200 System Corruption 0% Temperature Cool (30) Movement Rolling (135) Ox3 Location -10/Subcaves Parts ------- > --- POWER (1) -------- Subdweller Power Source > --- PROPULSION (2) --- Wheel Compact Wheel > --- UTILITY (2) ------ Huge Storage Unit Seismic Detector > --- WEAPON (2) ------- Beam Cannon Beam Cannon > --- INVENTORY (25) --- Subdweller Power Source Compact Wheel Compact Wheel Compact Wheel Subdweller Monowheel Subdweller Monowheel Disposable Heat Sink Medium Matter Pod (100) Scrap Shield Beam Cannon Beam Cannon Heavy Assault Rifle Heavy Assault Rifle Heavy Assault Rifle Heavy Assault Rifle Subdweller Machine Gun Light Cannon Rocket Launcher Subdweller Shrapnel Launcher Mining Laser Peak State ------------ > --- POWER ------------ Ion Engine > --- PROPULSION ------- Wheel Wheel > --- UTILITY ---------- Huge Storage Unit Medium Armor Plating > --- WEAPON ----------- Heavy EM Pulse Gun Heavy EM Pulse Gun > --- INVENTORY -------- Light Ion Engine Compact Wheel Medium Storage Unit Medium Matter Pod Medium Matter Pod Seismic Detector Medium Armor Plating Medium Armor Plating Medium Armor Plating Heavy EM Pulse Gun Heavy EM Pulse Gun Beam Cannon Beam Cannon Beam Cannon Beam Cannon Heavy Assault Rifle Heavy Assault Rifle Heavy Assault Rifle Heavy Assault Rifle Light Cannon Mining Laser [Rating: 13] Favorites ----------- Power Ion Engine Engine Ion Engine Propulsion Wheel Wheel Wheel Utility Medium Armor Plating Device Seismic Detector Storage Huge Storage Unit Protection Medium Armor Plating Weapon Heavy EM Pulse Gun Energy Gun Heavy EM Pulse Gun Energy Cannon Beam Cannon Ballistic Gun Assault Rifle Launcher Subdweller Shrapnel Launcher Special Weapon Mining Laser Build | -11 -10 -10 -10 ------- Run | Yrd Mat Min Sub Slots Evolved . | . . . . Power . | . . . . Propulsion . | . . . . Utility . | . . . . Weapon . | . . . . Parts Attached 31 | 9 9 . 13 Power 4 | 1 1 . 2 Engine 4 | 1 1 . 2 Core . | . . . . Reactor . | . . . . Propulsion 5 | 2 1 . 2 Treads . | . . . . Leg . | . . . . Wheel 5 | 2 1 . 2 Hover . | . . . . Flight . | . . . . Utility 10 | 4 3 . 3 Device 2 | 2 . . . Storage 4 | 2 2 . . Processor . | . . . . Hackware . | . . . . Protection 4 | . 1 . 3 Artifact . | . . . . Weapon 12 | 2 4 . 6 Energy Gun 5 | 1 2 . 2 Energy Cannon 2 | . . . 2 Ballistic Gun 2 | 1 . . 1 Ballistic Cannon . | . . . . Launcher 1 | . . . 1 Special Weapon 2 | . 2 . . Impact Weapon . | . . . . Slashing Weapon . | . . . . Piercing Weapon . | . . . . Special Melee Weapon . | . . . . Unidentified Prototypes . | . . . . Parts Lost 12 | . 1 . 11 Power 1 | . . . 1 Propulsion 3 | . 1 . 2 Utility 4 | . . . 4 Weapon 4 | . . . 4 Highest Loss Streak 6 | . 1 . 6 To Critical Strikes 1 | . . . 1 Average Backups 16 | 5 12 25 23 Power 1 | . 1 1 1 Propulsion 2 | 2 1 4 5 Utility 3 | . 2 7 5 Weapon 8 | . 7 12 11 Tool/Special . | . . . . Unused Backups 27 | 2 5 . 20 Power 1 | . . . 1 Propulsion 10 | 2 3 . 5 Utility 6 | . 1 . 5 Weapon 10 | . 1 . 9 Tool/Special . | . . . . Average Slot Usage (%) 99 | . 100 100 99 Engine 14 | . 14 14 14 Wheel 27 | . 28 28 27 Storage 14 | . 14 14 14 Protection 13 | . 13 14 12 Energy Gun 25 | . 27 28 20 Energy Cannon 1 | . . . 6 Peak Build Rating 13 | 7 13 13 13 Average Rating 11 | 6 11 13 12 On Entrance 8 | . 7 13 13 Naked Turns . | . . . . Heaviest Build 98 | 13 98 98 98 Greatest Support 26 | 20 20 20 26 Greatest Overweight (x) 9 | . 4 4 9 Average Overweight (x) 2 | . 1 4 3 Largest Inventory Capacity 25 | 8 25 25 25 Average Capacity 17 | 7 13 25 25 Most Carried 25 | 8 25 25 25 Average Carried 16 | 5 12 24 23 Final Capacity 25 | 8 25 25 25 Final Carried 25 | 8 25 25 21 Class Distribution -------------------- 97% | Mutant Dominant Class ---------------- Mutant | -10/Materials Mutant | -10/Mines Mutant | -10/Subcaves Resources | -11 -10 -10 -10 ----------- Run | Yrd Mat Min Sub Matter Collected 915 | 347 266 144 158 Remotely 49 | 49 . . . Salvage Created 1390 | 271 546 160 413 Parts 95 | 28 37 8 22 Haulers Intercepted 1 | . 1 . . Recyclers Shooed 1 | . 1 . . Parts Field Recycled . | . . . . Retrieved Matter . | . . . . Parts Self-Destructed . | . . . . Prevented . | . . . . Kills | -11 -10 -10 -10 ------- Run | Yrd Mat Min Sub Combat Hostiles Destroyed 23 | . 11 2 10 Guns 14 | . 11 . 3 Cannons 6 | . . . 6 AOE 3 | . . 2 1 Classes Destroyed 10 | 3 5 . 2 Worker 2 | 2 . . . Builder 2 | . 2 . . Tunneler 8 | 8 . . . Hauler 1 | . 1 . . Recycler 3 | 1 1 1 . Watcher 2 | . 2 . . Swarmer 6 | . 6 . . Grunt 7 | . 5 2 . Artisan 1 | . . . 1 Subdweller 10 | . . . 10 Best Kill Streak 5 | 5 5 2 4 Combat Bots Only 4 | . 3 2 4 Max Kills in Single Turn 2 | 1 2 2 1 Gunslinging . | . . . . Exploded 2 | . . 2 1 Melee . | . . . . Uniques/NPCs Destroyed . | . . . . Combat | -11 -10 -10 -10 -------- Run | Yrd Mat Min Sub Hostile Shots Fired 102 | . 28 . 74 Missed 30 | . 11 . 19 Hits 72 | . 17 . 55 Projectile 72 | . 17 . 55 Critical Strikes 3 | . 1 . 2 Damage Taken 1555 | . 148 50 1357 Core 256 | . . 25 231 Absorbed by Shields . | . . . . Core Remaining (%) 100 | 100 . . . Volleys Fired 109 | 19 38 4 48 Largest 2 | 2 2 2 2 Hottest 120 | 70 100 90 120 Shots Fired 207 | 38 73 8 88 Gun 146 | 38 70 8 30 Cannon 50 | . . . 50 Launcher 5 | . . . 5 Special 6 | . 3 . 3 Kinetic 28 | 19 . . 9 Thermal 75 | 19 3 . 53 Explosive . | . . . . Electromagnetic 104 | . 70 8 26 Robot Hit Streak 18 | 10 5 3 18 Robot Miss Streak 5 | 2 5 1 3 Penetration Max . | . . . . Secondary Targets 2 | . 1 . 1 Max Gunslinging Chain 1 | . 1 . 1 Shots Hit Robots 123 | 23 31 3 66 Core Hits 56 | 12 18 4 22 Critical Kills . | . . . . Critical Parts Destroyed . | . . . . Critical Strikes 2 | . 2 . . Corrupt 2 | . 2 . . Melee Attacks . | . . . . Impact . | . . . . Slashing . | . . . . Piercing . | . . . . Sneak Attacks . | . . . . Combat Hostiles . | . . . . Follow-up Attacks . | . . . . Damage Inflicted 2432 | 286 626 141 1379 Guns 1327 | 286 626 47 368 Cannons 648 | . . . 648 Explosions 457 | . . 94 363 Melee . | . . . . Ramming . | . . . . Kinetic 506 | 186 . . 320 Thermal 942 | 100 . 94 748 Explosive . | . . . . Electromagnetic 984 | . 626 47 311 Impact . | . . . . Slashing . | . . . . Piercing . | . . . . Highest Corruption . | . . . . Average Corruption . | . . . . Corruption Purged . | . . . . Corruption Blocked . | . . . . Overload Shots . | . . . . Overflow Damage . | . . . . Projectiles . | . . . . Explosions . | . . . . Melee . | . . . . Knockbacks . | . . . . Impact . | . . . . Kinetic . | . . . . Secondary . | . . . . Self-Inflicted Damage 112 | . . 50 62 Shots 2 | . . 1 1 Rammed . | . . . . Targets Rammed . | . . . . Kicked . | . . . . Crushed . | . . . . Highest Temperature 273 | 45 273 51 262 Average Temperature 47 | 15 65 24 29 Received Heat Transfer 608 | . 27 . 581 Siege Activations . | . . . . Martial Activations . | . . . . Shielding Activations . | . . . . Robots Disrupted . | . . . . Combat Hostiles . | . . . . Robots Corrupted . | . . . . Combat Hostiles . | . . . . Parts Fried 4 | . . . 4 Impact Corruptions . | . . . . Robots Melted . | . . . . Combat Hostiles . | . . . . Parts Melted . | . . . . Heat Transferred 1815 | 296 . 50 1469 Parts Sabotaged . | . . . . Parts Stolen . | . . . . Parts Stripped . | . . . . Power Chain Reactions 2 | . . 1 1 Alert | -11 -10 -10 -10 ------- Run | Yrd Mat Min Sub Maximum Alert Level . | . . . . Low Security (%) 100 | 100 100 100 . Level 1 . | . . . . Level 2 . | . . . . Level 3 . | . . . . Level 4 . | . . . . Level 5 . | . . . . High Security . | . . . . Max Security . | . . . . Peak Influence 176 | 15 176 72 . Initial 17 | . 3 17 . Average 31 | 2 40 13 . Influence Increases 561 | 55 446 60 . Destroy 0b10 Robot/C 260 | . 220 40 . Destroy 0b10 Robot/NC 90 | 55 30 5 . Destroy Leader 66 | . 56 10 . Successful Hack 33 | . 33 . . Select Force Hacks 60 | . 60 . . Disable Machine 15 | . 15 . . Destroy Structure 7 | . 2 5 . Lose Combat Pursuer 30 | . 30 . . Influence Decreases 561 | 50 405 106 . Entered New Map 31 | . 2 29 . Time Decay 520 | 50 393 77 . Lost Part 10 | . 10 . . Squads Dispatched 4 | . 4 . . Investigation 3 | . 3 . . Extermination . | . . . . Reinforcement 1 | . 1 . . Assault . | . . . . Garrison . | . . . . Intercept . | . . . . Searches Triggered . | . . . . Construction Impeded . | . . . . Haulers Reinforced . | . . . . Active Scanning Responses . | . . . . Cargo Convoy Interrupts . | . . . . Stealth | -11 -10 -10 -10 --------- Run | Yrd Mat Min Sub Distress Signals 2 | . 2 . . Communications Jammed . | . . . . Distress Signals . | . . . . Times Spotted 42 | . 30 . 12 Peak Tracking Total 4 | . 4 . 3 Tactical Retreats 1 | . 1 . . Traps | -11 -10 -10 -10 ------- Run | Yrd Mat Min Sub Traps Triggered 1 | . 1 . . Indirectly . | . . . . Trap Hack Attempts . | . . . . Triggered . | . . . . Disarmed . | . . . . Reprogrammed . | . . . . Reused . | . . . . Traps Extracted . | . . . . Installed . | . . . . Triggered . | . . . . Machines | -11 -10 -10 -10 ---------- Run | Yrd Mat Min Sub Machines Disabled 1 | . 1 . . Max in Single Turn 1 | . 1 . . Machines Repaired . | . . . . Machines Dismantled . | . . . . Machines Sabotaged . | . . . . Overloaded Fab Kills . | . . . . Hacking | -11 -10 -10 -10 --------- Run | Yrd Mat Min Sub Machines Accessed 9 | . 9 . . Terminals 7 | . 7 . . Fabricators . | . . . . Repair Stations . | . . . . Recycling Units 2 | . 2 . . Scanalyzers . | . . . . Garrison Access . | . . . . Total Hacks 21 | . 21 . . Successful 11 | . 11 . . Failed 10 | . 10 . . Catastrophic 3 | . 3 . . Database Lockouts . | . . . . Manual 17 | . 17 . . Terminals 18 | . 18 . . Fabricators . | . . . . Repair Stations . | . . . . Recycling Units 3 | . 3 . . Scanalyzers . | . . . . Garrison Access . | . . . . Terminal Hacks 3 | . 3 . . Robot Schematic 1 | . 1 . . Prototype ID Bank 2 | . 2 . . Fabricator Hacks . | . . . . Repair Station Hacks . | . . . . Recycling Unit Hacks . | . . . . Scanalyzer . | . . . . Garrison Access Hacks . | . . . . Unauthorized Hacks 8 | . 8 . . Terminals 6 | . 6 . . Operators 1 | . 1 . . Skim 5 | . 5 . . Fabricators . | . . . . Repair Stations . | . . . . Recycling Units 2 | . 2 . . Tunnel 2 | . 2 . . Scanalyzers . | . . . . Garrison Access . | . . . . Data Cores Recovered . | . . . . Used . | . . . . Hacking Detections 8 | . 8 . . Full Trace Events . | . . . . Feedback Events . | . . . . Feedback Blocked . | . . . . Robot Schematics Acquired 1 | . 1 . . Robots Built . | . . . . Authchips . | . . . . Time . | . . . . Total Robot Build Rating . | . . . . Part Schematics Acquired . | . . . . Parts Built . | . . . . Authchips . | . . . . Time . | . . . . Total Part Build Rating . | . . . . Parts Repaired . | . . . . Time . | . . . . Parts Recycled . | . . . . Recycled Matter . | . . . . Retrieved Matter . | . . . . Retrieved Components . | . . . . Parts Scanalyzed . | . . . . Part Schematics Acquired . | . . . . Parts Damaged . | . . . . Bothacking | -11 -10 -10 -10 ------------ Run | Yrd Mat Min Sub Used RIF Installer . | . . . . Robots Hacked . | . . . . Non-combat . | . . . . Combat . | . . . . Robot Hacks Applied . | . . . . Relay Couplers Released . | . . . . Fabnet Peak Effective % . | . . . . Robots Rewired . | . . . . Allies Hacked . | . . . . Hacks Repelled . | . . . . Allies | -11 -10 -10 -10 -------- Run | Yrd Mat Min Sub Total Allies . | . . . . Largest Group . | . . . . Highest-Rated Group . | . . . . Highest-Rated Ally . | . . . . Total Orders . | . . . . Ally Attacks . | . . . . Total Damage . | . . . . Kills . | . . . . Allies Corrupted . | . . . . Allies Melted . | . . . . Intel | -11 -10 -10 -10 ------- Run | Yrd Mat Min Sub Active Infowar (turns) 213 | 112 20 . 81 Seismic 213 | 112 20 . 81 Robot Analysis Total . | . . . . Derelict Logs Recovered 4 | . . 2 2 Drone Launches . | . . . . Drone Recoveries . | . . . . Exploration | -11 -10 -10 -10 ------------- Run | Yrd Mat Min Sub Turns Passed 2993 | 224 1608 427 734 Spaces Moved 1701 | 120 905 295 381 Core 2 | 2 . . . Treads . | . . . . Legs . | . . . . Wheels 1699 | 118 905 295 381 Hover . | . . . . Flight . | . . . . Fastest Speed 50 | 50 80 140 135 Average Speed 118 | 79 107 140 139 Slowest Speed 215 | 80 140 140 215 Overloaded Moves . | . . . . Propulsion Burnouts . | . . . . Robots Hopped . | . . . . Potential Cave-ins . | . . . . Cave-ins Triggered . | . . . . Exploration Rate (%) 52 | 5 97 69 37 Regions Visited 3 Branch Regions 2 Pre-discovered Areas 3 | . 2 1 . Known Exits Taken 2 | . 1 1 . Unknown Exits Taken 1 | 1 . . . Scrap Searched 4 | . . 1 3 Spaces Dug 2 | . 2 . . Terrain Destroyed 47 | . 2 5 40 Melee . | . . . . Projectile 2 | . 2 . . AOE 45 | . . 5 40 Terrain Rammed . | . . . . Walls Destroyed . | . . . . Machines Disabled . | . . . . Actions | -11 -10 -10 -10 --------- Run | Yrd Mat Min Sub Total 2459 | 207 1461 301 490 Wait 547 | 47 471 1 28 Move 1698 | 119 904 294 381 Hop . | . . . . Pick Up 46 | 10 24 1 11 Fast Attach 9 | 7 2 . . Attach 13 | . 2 . 11 Detach 2 | . 2 . . Swap 15 | 2 7 . 6 Drop 20 | 3 11 1 5 Fire 109 | 19 38 4 48 Melee . | . . . . Ram . | . . . . Kick . | . . . . Crush . | . . . . Escape Stasis . | . . . . Rewire . | . . . . Trap . | . . . . Miscellaneous . | . . . . Route ------- -11/Scrapyard -10/Materials (discovered 6 exits: *Mat x3 / *Min x2 / Sub) -10/Mines (discovered 3 exits: *Mat x2 / *Sub) -10/Subcaves (discovered 3 exits: Mat x2 / Rec) History --------- Turn | Location | Event 26 | -11/Scrapyard | Discovered new exit (range 15) 225 | -11/Scrapyard | Entered Materials 297 | -10/Materials | Discovered new exit (range 11) 304 | -10/Materials | Build established: Mutant 374 | -10/Materials | Discovered new exit (range 16) 554 | -10/Materials | Discovered new exit (range 16) 737 | -10/Materials | Discovered new exit (range 7) 793 | -10/Materials | Identified exit to Mines 793 | -10/Materials | Identified exit to Subcaves 895 | -10/Materials | Learned Storage stockpile data 956 | -10/Materials | Learned location of 1 exit from Storage 1833 | -10/Materials | Entered Mines 1833 | -10/Mines | Discovered new exit (range 12) 1834 | -10/Mines | Identified exit to Materials 2027 | -10/Mines | Learned Materials terminal intel 2144 | -10/Mines | Learned Materials emergency access door positions 2163 | -10/Mines | Received a Rocket Launcher from a helpful Derelict 2234 | -10/Mines | Learned location of Storage (-9) 2247 | -10/Mines | Discovered exit to Subcaves (range 10) 2260 | -10/Mines | Entered Subcaves 2261 | -10/Subcaves | Identified exit to Materials 2261 | -10/Subcaves | Identified exit to Recycling 2263 | -10/Subcaves | Learned 4 Materials zone layouts 2432 | -10/Subcaves | Disturbed a concealed Subdweller 2863 | -10/Subcaves | Lost 6 parts (1n2u3w) 2897 | -10/Subcaves | Ambushed by angry Subdweller bent on revenge 2899 | -10/Subcaves | Core integrity fell below 50% 2992 | -10/Subcaves | Core integrity fell below 20% 2994 | -10/Subcaves | Destroyed by JZ-E0G(R) with Subdweller Laser Last Messages --------------- 02885_ Q3-1T1(u) destroyed. 02889_ Acquired Wheel. 02898_ AJ-VUH(R) destroyed. 02901_ Sub. Shrapnel Launcher shoots sparks and powers down. MD-IHE(R) emerges from concealment. 02906_ EU-I7Z(R) destroyed. 02913_ Med. Armor Plating destroyed. 02920_ AW-U14(R) destroyed. 02926_ MD-IHE(R) affixes Scrap Shield Fragment to Scrap Shield. 02940_ MD-IHE(R) destroyed. 02945_ Acquired Sub. Machine Gun. 02946_ Acquired 50 matter. 02949_ Acquired Disposable Heat Sink. 02953_ Acquired Sub. Power Source. 02967_ Acquired Lgt. Cannon. 02968_ Subatomizers dissect the Sub. Optics. 02980_ Critical hit (Destroy). 02980_ Wheel destroyed. 02982_ Lgt. Ion Engine destroyed. 02991_ 9L-ICV(R) destroyed. Map ----- +----------------------------------------------------+ | ?????????????????????????????????????????????????? | | ?????????????????????????????????????????????????? | | ?????????????????????????????????????????????????? | | ?????????????????????????????????????????????????? | | ?????????????????????????????????????????????????? | | ?????????????????????????????????????????????????? | | ????????????????????????????# ???????????????????? | | ??????????????????????????? ???????????????????? | | ?????????????????????????? ?????" ???????????? | | ???????????????????????????"""#????""#???????????? | | ???????????????##??????????#""#???#""#???????????? | | ??????????????## ?????????# ##??#""##??????????? | | ??????????????# #???????## #??"" #??????????? | | ???????????????# ##????## ##?" ##??????????? | | ???????????? ??# #???# " ### #??????????? | | ????????????? ??# #??# " "" #???####???? | | ?????????????? ### ### %& #???## ##??? | | ?????????????? # #??## #??? | | ???????????????""" "" %##?# #??? | | ?????????????????# ## ### ### #??? | | ??????????????????# ##& " ##?? | | ??????????????????# R [% #?? | | ??????????????????###R = ## #?? | | ??????????????????#?## ### & ## #?# | | ??????????????#" # # &###" # ### | | ??????????????#" &%@## ## ## | | ??????????????#""# ## [ & ### ## | | ?????????????????###?## % ## # | | ?????????????????????# *! ## # | | ?????????????????????###; ; ## ### ### | | ???????????????????????##; ;; ### ## ## | | ????????????????????????# ;# ##?# ## # | | ??????????????????????? ;;##" #?? # | | ?????????????????????? #### ? # | | ?????????????????????# ""#"#??#" ### ## | | ?????????????????????#######??#"" ####?#### | | ???????????????????????????????#### ##???????# | | ???????????????????????????????????#####????????## | | ?????????????????????????????????????????????????? | | ?????????????????????????????????????????????????? | | ?????????????????????????????????????????????????? | | ?????????????????????????????????????????????????? | | ?????????????????????????????????????????????????? | | ?????????????????????????????????????????????????? | | ?????????????????????????????????????????????????? | | ?????????????????????????????????????????????????? | | ?????????????????????????????????????????????????? | | ?????????????????????????????????????????????????? | | ?????????????????????????????????????????????????? | | ?????????????????????????????????????????????????? | +----------------------------------------------------+ Best States ------------- Heat Dissipation 25 Energy Generation 15 Energy Capacity 250 Matter Stores 300 Matter Capacity 300 Sight Range 16 Terrain Scan Density 10 Armor Coverage 225 Evasion (%) 44 Item Schematics ----------------- None Robot Schematics ------------------ M-13 Machinist | -10/Materials | Hacked Fabricated ------------ Nothing Repaired ---------- Nothing Alien Tech Used ----------------- None Achievements -------------- None Challenges ------------ None Game ------ Seed IntegratedChargeFocus Manual? 0 Play Time 00:20:56 Cumulative 1131.1 hours Start 2025.07.26 @ 20:21:35 End 2025.07.26 @ 21:00:13 Sessions 1 Manual Loads 0 Difficulty Rogue Special Mode None Game No. 561 Rogue 561 Adventurer 0 Explorer 0 Win Type - Total 23 Types 10/4/3/0/1/1/2/2/0/0 Lore% 90 Gallery% 89 Achievement% 83 Wizard Run 0 Options --------- Layout 0 ASCII 0 Keyboard 0 Movement Numpad Keybinds 0 Fullscreen 2 Font 24/Smallcaps Map View 76x50 Zoom Use 0% Tactical HUD 1 Map Filters NONE Filters SHIFT_HUE(315) Steam 1 RUN: e824bf66-2853-451a-8505-41f5c5cdfed0